fUSD/lending_fUSD_20250321
["ID","MTS","AMOUNT","RATE_DAILY","PERIOD"]
[356484697,1742516532061,-425.86,0.00029207,2]
[356484698,1742516532083,-152.0,0.00029244,32]
[356484699,1742516532106,-167.26,0.00029306,120]
[356484700,1742516532129,-152.0,0.00029418,33]
[356484701,1742516532154,-152.0,0.00029593,34]
[356484702,1742516532178,-1000.0,0.00029635,2]
[356484703,1742516532200,-151.0,0.00029686,7]
[356484704,1742516532222,-152.0,0.00029767,35]
[356484705,1742516532246,-229.20479441,0.00029767,5]
[356484706,1742516532269,-809.2552,0.0002979,2]
[356484707,1742516532296,-2645.88248929,0.000298,2]
[356484708,1742516532320,-211.6895525,0.00029882,2]
[356484709,1742516532342,-243.36948,0.0002989,7]
[356484710,1742516532364,-243.36948,0.0002989,7]
[356484711,1742516532387,-157.966654,0.0002989,7]
[356484712,1742516532408,-157.966654,0.0002989,7]
[356484713,1742516532430,-151.0,0.0002989,7]
[356484714,1742516532451,-151.0,0.0002989,7]
[356484715,1742516532472,-238.917424,0.0002989,7]
[356484716,1742516532493,-209.737756,0.0002989,7]
[356484717,1742516532513,-151.0,0.0002989,7]
[356484718,1742516532535,-151.0,0.0002989,7]
[356484719,1742516532555,-151.0,0.0002989,7]
[356484720,1742516532577,-151.0,0.0002989,7]
[356484721,1742516532598,-151.0,0.0002989,7]
[356484722,1742516532619,-151.0,0.0002989,7]
[356484723,1742516532640,-181.40244,0.0002989,7]
[356484724,1742516532662,-181.40244,0.0002989,7]
[356484725,1742516532682,-202.192633,0.0002989,7]
[356484726,1742516532701,-202.192633,0.0002989,7]
[356484727,1742516532722,-151.0,0.0002989,7]
[356484728,1742516532745,-325.0437,0.0002989,7]
[356484729,1742516532772,-325.0437,0.0002989,7]
[356484730,1742516532794,-151.0,0.0002989,7]
[356484731,1742516532814,-151.0,0.0002989,7]
[356484732,1742516532836,-151.0,0.0002989,7]
[356484733,1742516532858,-223.210476,0.0002989,7]
[356484734,1742516532880,-223.210476,0.0002989,7]
[356484735,1742516532902,-1637.021766,0.0002989,7]
[356484736,1742516532926,-1637.021766,0.0002989,7]
[356484737,1742516532948,-208.513293,0.0002989,7]
[356484738,1742516532969,-151.0,0.0002989,7]
[356484739,1742516532990,-151.0,0.0002989,7]
[356484740,1742516533012,-151.0,0.0002989,7]
[356484741,1742516533034,-151.0,0.0002989,7]
[356484742,1742516533056,-151.0,0.0002989,7]
[356484743,1742516533076,-151.0,0.0002989,7]
[356484744,1742516533098,-232.534528,0.0002989,7]
[356484745,1742516533119,-321.714997,0.0002989,7]
[356484746,1742516533140,-321.714997,0.0002989,7]
[356484747,1742516533162,-321.714997,0.0002989,7]
[356484748,1742516533183,-321.714997,0.0002989,7]
[356484749,1742516533206,-286.954211,0.0002989,7]
[356484750,1742516533226,-286.954211,0.0002989,7]
[356484751,1742516533249,-286.954211,0.0002989,7]
[356484752,1742516533270,-286.954211,0.0002989,7]
[356484753,1742516533292,-230.2144,0.0002989,7]
[356484754,1742516533313,-230.2144,0.0002989,7]
[356484755,1742516533335,-230.2144,0.0002989,7]
[356484756,1742516533356,-230.2144,0.0002989,7]
[356484757,1742516533377,-151.0,0.0002989,7]
[356484758,1742516533399,-231.557471,0.0002989,7]
[356484759,1742516533420,-151.0,0.0002989,7]
[356484760,1742516533442,-309.012802,0.0002989,7]
[356484761,1742516533464,-309.012802,0.0002989,7]
[356484762,1742516533486,-309.012802,0.0002989,7]
[356484763,1742516533508,-309.012802,0.0002989,7]
[356484764,1742516533530,-63091.96854455,0.000299,2]
[356484765,1742516533551,-151.0,0.000299,7]
[356484766,1742516533574,-151.0,0.000299,7]
[356484767,1742516533595,-151.0,0.000299,7]
[356484768,1742516533617,-151.0,0.000299,7]
[356484769,1742516533639,-151.0,0.000299,7]
[356484770,1742516533660,-151.0,0.000299,7]
[356484771,1742516533683,-243.36948,0.000299,7]
[356484772,1742516533705,-243.36948,0.000299,7]
[356484773,1742516533727,-157.966654,0.000299,7]
[356484774,1742516533753,-157.966654,0.000299,7]
[356484775,1742516533774,-151.0,0.000299,7]
[356484776,1742516533795,-151.0,0.000299,7]
[356484777,1742516533816,-152.465043,0.000299,7]
[356484778,1742516533946,-151.945352,0.000299,7]
[356484779,1742516534002,-151.0,0.000299,7]
[356484780,1742516534026,-151.0,0.000299,7]
[356484781,1742516534050,-151.0,0.000299,7]
[356484782,1742516534072,-151.0,0.000299,7]
[356484783,1742516534095,-181.40244,0.000299,7]
[356484784,1742516534117,-181.40244,0.000299,7]
[356484785,1742516534138,-202.192633,0.000299,7]
[356484786,1742516534160,-202.192633,0.000299,7]
[356484787,1742516534182,-151.0,0.000299,7]
[356484788,1742516534205,-325.0437,0.000299,7]
[356484789,1742516534228,-325.0437,0.000299,7]
[356484790,1742516534250,-151.0,0.000299,7]
[356484791,1742516534273,-151.0,0.000299,7]
[356484792,1742516534296,-151.0,0.000299,7]
[356484793,1742516534318,-223.210476,0.000299,7]
[356484794,1742516534339,-223.210476,0.000299,7]
[356484795,1742516534361,-1637.021766,0.000299,7]
[356484796,1742516534383,-1637.021766,0.000299,7]
[356484797,1742516534405,-151.0,0.000299,7]
[356484798,1742516534426,-151.0,0.000299,7]
[356484799,1742516534448,-151.0,0.000299,7]
[356484800,1742516534469,-151.0,0.000299,7]
[356484801,1742516534491,-321.714997,0.000299,7]
[356484802,1742516534514,-321.714997,0.000299,7]
[356484803,1742516534535,-286.954211,0.000299,7]
[356484804,1742516534558,-286.954211,0.000299,7]
[356484805,1742516534580,-230.2144,0.000299,7]
[356484806,1742516534602,-230.2144,0.000299,7]
[356484807,1742516534625,-309.012802,0.000299,7]
[356484808,1742516534647,-309.012802,0.000299,7]
[356484809,1742516534669,-300.0,0.0003,120]
[356484810,1742516534691,-150.0,0.0003,2]
[356484811,1742516534714,-4572.5,0.00030137,2]
[356484812,1742516534737,-150.0,0.00030379,2]
[356484813,1742516534764,-151.0,0.0003049,7]
[356484814,1742516534786,-151.0,0.0003049,7]
[356484815,1742516534807,-151.0,0.0003049,7]
[356484816,1742516534829,-46621.7627669,0.0003049,2]
[356484817,1742516534854,-65999.0473118,0.000305,7]
[356484818,1742516534877,-151.0,0.000305,7]
[356484819,1742516534899,-151.0,0.000305,7]
[356484820,1742516534920,-153.921915,0.000305,7]
[356484821,1742516534942,-151.0,0.000305,7]
[356484822,1742516534963,-151.0,0.000305,7]
[356484823,1742516534986,-151.0,0.000305,7]
[356484824,1742516535008,-243.36948,0.000305,7]
[356484825,1742516535030,-243.36948,0.000305,7]
[356484826,1742516535052,-157.966654,0.000305,7]
[356484827,1742516535074,-157.966654,0.000305,7]
[356484828,1742516535095,-151.0,0.000305,7]
[356484829,1742516535117,-151.0,0.000305,7]
[356484830,1742516535137,-151.0,0.000305,7]
[356484831,1742516535160,-151.0,0.000305,7]
[356484832,1742516535181,-151.0,0.000305,7]
[356484833,1742516535204,-151.0,0.000305,7]
[356484834,1742516535226,-181.40244,0.000305,7]
[356484835,1742516535250,-181.40244,0.000305,7]
[356484836,1742516535272,-202.192633,0.000305,7]
[356484837,1742516535294,-202.192633,0.000305,7]
[356484838,1742516535315,-151.0,0.000305,7]
[356484839,1742516535337,-151.0,0.000305,7]
[356484840,1742516535360,-325.0437,0.000305,7]
[356484841,1742516535383,-325.0437,0.000305,7]
[356484842,1742516535405,-325.0437,0.000305,7]
[356484843,1742516535427,-325.0437,0.000305,7]
[356484844,1742516535449,-151.0,0.000305,7]
[356484845,1742516535471,-151.0,0.000305,7]
[356484846,1742516535492,-151.0,0.000305,7]
[356484847,1742516535515,-151.0,0.000305,7]
[356484848,1742516535537,-299.713211,0.000305,7]
[356484849,1742516535561,-223.210476,0.000305,7]
[356484850,1742516535583,-223.210476,0.000305,7]
[356484851,1742516535605,-1637.021766,0.000305,7]
[356484852,1742516535627,-1637.021766,0.000305,7]
[356484853,1742516535650,-160.148705,0.000305,7]
[356484854,1742516535673,-151.0,0.000305,7]
[356484855,1742516535699,-151.0,0.000305,7]
[356484856,1742516535721,-151.0,0.000305,7]
[356484857,1742516535744,-151.0,0.000305,7]
[356484858,1742516535771,-321.714997,0.000305,7]
[356484859,1742516535792,-321.714997,0.000305,7]
[356484860,1742516535814,-321.714997,0.000305,7]
[356484861,1742516535836,-321.714997,0.000305,7]
[356484862,1742516535860,-286.954211,0.000305,7]
[356484863,1742516535883,-286.954211,0.000305,7]
[356484864,1742516535905,-286.954211,0.000305,7]
[356484865,1742516535926,-286.954207,0.000305,7]
[356484866,1742516535948,-230.2144,0.000305,7]
[356484867,1742516535971,-230.2144,0.000305,7]
[356484868,1742516535993,-230.2144,0.000305,7]
[356484869,1742516536015,-230.2144,0.000305,7]
[356484870,1742516536038,-309.012802,0.000305,7]
[356484871,1742516536060,-309.012802,0.000305,7]
[356484872,1742516536082,-151.0,0.000305,7]
[356484873,1742516536105,-309.012802,0.000305,7]
[356484874,1742516536128,-309.012806,0.000305,7]
[356484875,1742516536151,-151.0,0.000305,7]
[356484876,1742516536174,-151.0,0.000305,7]
[356484877,1742516536196,-151.0,0.000305,7]
[356484878,1742516536218,-227.687201,0.000305,7]
[356484879,1742516536239,-293.252486,0.000305,7]
[356484880,1742516536261,-227.687201,0.000305,7]
[356484881,1742516536284,-293.252486,0.000305,7]
[356484882,1742516536306,-1000.0,0.000308,11]
[356484883,1742516536329,-160.17,0.0003087,30]
[356484884,1742516536351,-152.371078,0.000309,7]
[356484885,1742516536372,-181.40244,0.000309,7]
[356484886,1742516536394,-181.40244,0.000309,7]
[356484887,1742516536416,-202.192633,0.000309,7]
[356484888,1742516536470,-202.192633,0.000309,7]
[356484889,1742516536493,-1400.0,0.000309,11]
[356484890,1742516536517,-500.0,0.00031,120]
[356484891,1742516536539,-500.0,0.00031,2]
[356484892,1742516536561,-514.297339,0.000312,6]
[356484893,1742516536583,-164.65303725,0.00031231,2]
[356484894,1742516536605,-554.168,0.00031259,2]
[356484895,1742516536627,-787.0,0.00031259,2]
[356484896,1742516536648,-1271.0,0.00031259,2]
[356484897,1742516536673,-1429.0,0.00031259,2]
[356484898,1742516536697,-4081.0,0.00031259,2]
[356484899,1742516536718,-907.0,0.00031259,2]
[356484900,1742516536741,-225.698,0.00031259,2]
[356484901,1742516536768,-1013.0,0.00031259,2]
[356484902,1742516536789,-3936.0,0.00031259,2]
[356484903,1742516536812,-6745.74965378,0.000313,2]
[356484904,1742516536834,-1000.0,0.00031337,120]
[356484905,1742516536856,-584.64086424,0.00031371,2]
[356484906,1742516536878,-11655.4406917,0.0003138,2]
[356484907,1742516536900,-351.0,0.00031389,5]
[356484908,1742516536922,-375.04096716,0.00031389,2]
[356484909,1742516536944,-11655.4406917,0.0003139,2]
[356484910,1742516536966,-14737.26,0.000314,30]
[356484911,1742516536987,-157.966654,0.000314,7]
[356484912,1742516537010,-157.966654,0.000314,7]
[356484913,1742516537033,-151.0,0.000314,7]
[356484914,1742516537054,-151.0,0.000314,7]
[356484915,1742516537076,-151.0,0.000314,7]
[356484916,1742516537098,-151.0,0.000314,7]
[356484917,1742516537121,-151.0,0.000314,7]
[356484918,1742516537144,-200.0,0.000314,120]
[356484919,1742516537166,-1637.021766,0.000314,7]
[356484920,1742516537187,-1637.021766,0.000314,7]
[356484921,1742516537208,-151.0,0.000314,7]
[356484922,1742516537230,-563.143116,0.000314,7]
[356484923,1742516537252,-397.081793,0.000314,7]
[356484924,1742516537274,-397.081793,0.000314,7]
[356484925,1742516537297,-229.911006,0.000314,7]
[356484926,1742516537318,-151.0,0.000314,7]
[356484927,1742516537339,-229.911006,0.000314,7]
[356484928,1742516537361,-151.0,0.000314,7]
[356484929,1742516537382,-151.0,0.000314,7]
[356484930,1742516537402,-363.82,0.000314,30]
[356484931,1742516537423,-11655.4406917,0.00031421,2]
[356484932,1742516537443,-151.0,0.00031431,7]
[356484933,1742516537464,-321.714997,0.00031431,7]
[356484934,1742516537484,-321.714989,0.00031431,7]
[356484935,1742516537505,-230.2144,0.00031431,7]
[356484936,1742516537527,-230.2144,0.00031431,7]
[356484937,1742516537548,-58277.2034587,0.00031467,2]
[356484938,1742516537569,-425.86,0.00031471,2]
[356484939,1742516537591,-11655.4406917,0.00031476,2]
[356484940,1742516537613,-9559.5612629,0.00031476,2]
[356484941,1742516537634,-152.05,0.00031476,2]
[356484942,1742516537655,-46621.7627669,0.00031477,2]
[356484943,1742516537677,-47797.8063145,0.00031477,2]
[356484944,1742516537698,-81588.0848421,0.00031486,2]
[356484945,1742516537721,-77689.37195615,0.00031486,2]
[356484946,1742516561510,150.0,0.00031489,30]
[356484947,1742516714650,1442.63295572,0.000121,30]
[356484948,1742516723730,2014.5483417,0.00031489,120]
[356484951,1742516813187,1992.36901202,9.77e-05,2]
[356484952,1742516828275,36474.0,0.00018,30]
[356484953,1742516836975,-90300.0,0.00012,2]
[356484955,1742516912345,-150.0,9.828e-05,2]
[356484956,1742516915620,-912.35790634,9.828e-05,2]
[356484961,1742516920281,-76.53654339,9.828e-05,2]
[356484962,1742516920304,-200.0,0.000118,4]
[356484963,1742516920330,-500.0,0.000119,4]
[356484964,1742516920353,-710878.46345661,0.00012,2]
[356484965,1742516921070,-161.44191272,0.00012,2]
[356484974,1742517016443,-150.0,0.00011999,2]
[356484975,1742517016466,-430296.51867331,0.00012,2]
[356484976,1742517016488,-350.0,0.000132,2]
[356484977,1742517016509,-150.0,0.000132,2]
[356484978,1742517022823,809.2552,0.000119,2]
[356484987,1742517032536,-350.0,0.0001675,2]
[356484988,1742517032546,-150.0,0.0001675,2]
[356484989,1742517032555,-350.0,0.0001974,2]
[356484990,1742517032565,-150.0,0.0001974,2]
[356484991,1742517032575,-6745.74965378,0.000215,2]
[356484992,1742517032584,-923.74900894,0.000217,2]
[356484993,1742517032593,-545.66480668,0.000217,2]
[356484994,1742517032602,-2381.29424037,0.000219,2]
[356484995,1742517032611,-248.49134818,0.000219,3]
[356484996,1742517032620,-13648.93991673,0.00022,14]
[356485030,1742517038291,-688.21900998,0.00022,14]
[356485031,1742517038314,-1478.03515611,0.00022,14]
[356485100,1742517046290,-13849.80591718,0.00022,14]
[356485101,1742517046300,-545.66480658,0.00024571,2]
[356485102,1742517046310,-30.20607624,0.0002459,3]
[356485103,1742517046570,-218.28527177,0.0002459,3]
[356485104,1742517046579,-152.05,0.0002479,2]
[356485105,1742517046589,-5567.56,0.0002479,2]
[356485106,1742517046599,-233756.52776733,0.000248,2]
[356485107,1742517046715,-0.10075326,0.000248,2]
[356485136,1742518231709,-350.0,0.00013269,2]
[356485137,1742518231719,-150.0,0.00013269,2]
[356485138,1742518231728,-350.0,0.00014072,2]
[356485139,1742518231739,-350.0,0.00014072,2]
[356485140,1742518231748,-150.0,0.00014072,2]
[356485141,1742518231758,-35.97802028,0.00014988,2]
[356485142,1742518231770,-114.02197972,0.00014988,2]
[356485143,1742518231779,-316.26903412,0.00017222,2]
[356485144,1742518231788,-250.0,0.00021,2]
[356485145,1742518231798,-5.79732894,0.00023,2]
[356485146,1742518231825,-272.80967872,0.00023,2]
[356485147,1742518231836,-21.39299234,0.00023,2]
[356485148,1742518231846,-152.0,0.00024767,3]
[356485149,1742518231858,-135.03334461,0.00024873,2]
[356485154,1742518231913,-23.74665539,0.00024873,2]
[356485156,1742518231922,-350.0,0.00025,2]
[356485158,1742518231931,-152.0,0.00025174,4]
[356485160,1742518231941,-213.185076,0.00025452,2]
[356485162,1742518231950,-152.0,0.0002558,5]
[356485164,1742518231959,-152.0,0.00025987,6]
[356485166,1742518231968,-211.6895525,0.00026206,2]
[356485168,1742518231977,-715.337,0.00026212,12]
[356485170,1742518231986,-150.0,0.00026221,2]
[356485172,1742518231996,-150.0,0.00026221,2]
[356485174,1742518232006,-173.46,0.00026222,2]
[356485176,1742518232015,-1000.0,0.00026222,2]
[356485178,1742518232025,-220.59,0.00026222,2]
[356485180,1742518232035,-1000.0,0.00026222,2]
[356485182,1742518232043,-11985.31016361,0.00026222,2]
[356485267,1742518237449,-11914.68983639,0.00026222,2]
[356485268,1742518237459,-1508.0,0.00026222,2]
[356485269,1742518237470,-501.29,0.00026222,2]
[356485270,1742518237479,-200.0,0.00026222,2]
[356485271,1742518237489,-284.28,0.00026222,2]
[356485272,1742518237499,-167.26,0.00026222,120]
[356485273,1742518237509,-371.50470524,0.00026273,2]
[356485274,1742518237518,-163.23,0.00026277,30]
[356485275,1742518237529,-152.0,0.00026394,7]
[356485276,1742518237539,-2421.11234466,0.00026642,2]
[356485277,1742518237549,-152.0,0.00026801,8]
[356485278,1742518237558,-327.4,0.00026849,2]
[356485279,1742518237567,-179.09,0.00026849,2]
[356485280,1742518237576,-271.88404641,0.000269,4]
[356485281,1742518237585,-400.0,0.00027,2]
[356485282,1742518237594,-152.0,0.00027208,9]
[356485283,1742518237604,-220.59,0.00027271,2]
[356485284,1742518237614,-353.44459125,0.00027512,2]
[356485285,1742518237623,-150.0,0.00027591,2]
[356485286,1742518237632,-152.0,0.00027615,10]
[356485287,1742518237641,-200.0,0.00027758,2]
[356485288,1742518237650,-1645.67,0.00027828,2]
[356485289,1742518237661,-4681.93683186,0.00027903,2]
[356485290,1742518237670,-4572.5,0.00027913,2]
[356485291,1742518237679,-170.21,0.0002792,2]
[356485292,1742518237688,-250.0,0.00027938,2]
[356485293,1742518237698,-150.0,0.00027983,2]
[356485294,1742518237708,-152.0,0.00028021,11]
[356485295,1742518237717,-171.12,0.00028206,120]
[356485296,1742518237727,-152.0,0.00028428,12]
[356485298,1742518237736,-270.23,0.00028469,2]
[356485299,1742518237746,-152.0,0.00028835,13]
[356485301,1742518237755,-150.0,0.00028961,2]
[356485303,1742518237764,-450.0,0.00029,2]
[356485305,1742518237775,-300.0,0.00029198,2]
[356485306,1742518237786,-152.0,0.00029242,14]
[356485307,1742518237795,-4572.5,0.00029309,2]
[356485309,1742518237804,-1000.0,0.000295,2]
[356485311,1742518237813,-2751.0,0.00029522,2]
[356485313,1742518237822,-152.0,0.00029649,15]
[356485315,1742518237832,-152.0,0.00030055,16]
[356485317,1742518237841,-500.0,0.00030101,7]
[356485319,1742518237850,-515.704866,0.000302,6]
[356485322,1742518237859,-500.0,0.00030201,13]
[356485325,1742518237868,-817.94,0.00030301,14]
[356485327,1742518237877,-150.0,0.00030331,2]
[356485330,1742518237887,-152.0,0.00030462,17]
[356485332,1742518237897,-588.4804805,0.00030541,4]
[356485333,1742518237906,-300.0,0.00030567,2]
[356485334,1742518237915,-300.0,0.000307,11]
[356485335,1742518237925,-4572.5,0.00030705,2]
[356485336,1742518237934,-270.23,0.00030733,2]
[356485337,1742518237943,-700.0,0.000308,11]
[356485338,1742518237952,-152.0,0.00030869,18]
[356485339,1742518237962,-1100.0,0.000309,11]
[356485340,1742518237971,-153.0,0.00030996,2]
[356485341,1742518237980,-153.0,0.00030996,2]
[356485342,1742518237989,-153.0,0.00030996,2]
[356485343,1742518238002,-153.0,0.00030996,2]
[356485344,1742518238012,-500.0,0.00031,2]
[356485345,1742518238021,-500.0,0.000312,6]
[356485346,1742518238031,-152.0,0.00031276,19]
[356485347,1742518238040,-198.9129749,0.00031319,2]
[356485348,1742518238049,-375.04096716,0.0003137,2]
[356485349,1742518238058,-996.36133338,0.0003137,3]
[356485350,1742518238068,-2489.34976469,0.0003137,2]
[356485351,1742518238079,-164.65303725,0.0003137,2]
[356485352,1742518238089,-6071.17468833,0.0003137,2]
[356485353,1742518238100,-151.6906,0.0003137,2]
[356485354,1742518238109,-511.88555668,0.00031371,2]
[356485355,1742518238118,-510.0,0.0003139,2]
[356485356,1742518238128,-10380.2994666,0.00031461,2]
[356485357,1742518238137,-150.0,0.00031464,2]
[356485358,1742518238147,-19501.8672433,0.00031465,2]
[356485359,1742518238160,-42370.36289266,0.00031465,2]
[356485360,1742518238180,-409.56666354,0.00031465,2]
[356485361,1742518238189,-8837.60208431,0.00031469,2]
[356485362,1742518238202,-4891.75415988,0.00031469,2]
[356485363,1742518238213,-1463.88406368,0.00031469,2]
[356485364,1742518238236,-1025.15144011,0.00031469,2]
[356485366,1742518239669,-276.517,0.00025698,2]
[356485367,1742518239679,-14922.50665182,0.00031469,2]
[356485368,1742518239689,-2975.45647121,0.00031469,2]
[356485369,1742518239724,-1540.76766265,0.00031469,2]
[356485370,1742518239759,-573.21934277,0.00031469,2]
[356485371,1742518239817,-288.07999384,0.00031469,2]
[356485372,1742518239829,-487.89012847,0.00031469,2]
[356485373,1742518239876,-889.375035,0.00031469,2]
[356485374,1742518239990,-479.31121115,0.00031469,2]
[356485375,1742518240003,-1395.14571064,0.00031469,2]
[356485376,1742518240053,-3094.86716903,0.00031469,2]
[356485409,1742518245801,-7979.6,0.00031469,2]
[356485410,1742518245813,-11437.18567504,0.00031469,2]
[356485411,1742518245823,-309.012802,0.0003147,7]
[356485412,1742518245832,-309.012802,0.0003147,7]
[356485413,1742518245841,-151.0,0.0003147,7]
[356485414,1742518245850,-151.0,0.0003147,7]
[356485415,1742518245859,-151.0,0.0003147,7]
[356485416,1742518245868,-151.0,0.0003147,7]
[356485417,1742518245878,-151.0,0.0003147,7]
[356485418,1742518245887,-151.0,0.0003147,7]
[356485419,1742518245896,-151.0,0.0003147,7]
[356485420,1742518245905,-193.606039,0.0003147,7]
[356485421,1742518245915,-397.081793,0.0003147,7]
[356485422,1742518245924,-397.081793,0.0003147,7]
[356485423,1742518245933,-397.081793,0.0003147,7]
[356485424,1742518245942,-397.081793,0.0003147,7]
[356485425,1742518245951,-151.0,0.0003147,7]
[356485426,1742518245961,-229.911006,0.0003147,7]
[356485427,1742518245969,-151.0,0.0003147,7]
[356485428,1742518245980,-229.911006,0.0003147,7]
[356485429,1742518245990,-229.911006,0.0003147,7]
[356485430,1742518246000,-229.911006,0.0003147,7]
[356485431,1742518246009,-209.740184,0.0003147,7]
[356485432,1742518246018,-209.740184,0.0003147,7]
[356485433,1742518246027,-209.740184,0.0003147,7]
[356485434,1742518246036,-209.740184,0.0003147,7]
[356485435,1742518246047,-151.0,0.0003147,7]
[356485436,1742518246056,-228.103281,0.0003147,7]
[356485437,1742518246066,-151.0,0.0003147,7]
[356485438,1742518246075,-232.534528,0.0003147,7]
[356485439,1742518246084,-301.023622,0.0003147,7]
[356485440,1742518246093,-151.0,0.0003147,7]
[356485441,1742518246103,-151.0,0.0003147,7]
[356485442,1742518246113,-151.0,0.0003147,7]
[356485443,1742518246122,-151.0,0.0003147,7]
[356485444,1742518246131,-151.0,0.0003147,7]
[356485445,1742518246140,-151.0,0.0003147,7]
[356485446,1742518246149,-151.0,0.0003147,7]
[356485447,1742518246159,-151.0,0.0003147,7]
[356485448,1742518246168,-151.0,0.0003147,7]
[356485449,1742518246177,-151.0,0.0003147,7]
[356485450,1742518246186,-154.482488,0.0003147,7]
[356485451,1742518246195,-154.482488,0.0003147,7]
[356485452,1742518246204,-154.482488,0.0003147,7]
[356485453,1742518246213,-154.482488,0.0003147,7]
[356485454,1742518246222,-576.645014,0.0003147,7]
[356485455,1742518246231,-576.645014,0.0003147,7]
[356485456,1742518246240,-576.645014,0.0003147,7]
[356485457,1742518246249,-576.645014,0.0003147,7]
[356485458,1742518246258,-151.0,0.0003147,7]
[356485459,1742518246268,-151.0,0.0003147,7]
[356485460,1742518246281,-151.0,0.0003147,7]
[356485461,1742518246291,-151.0,0.0003147,7]
[356485462,1742518246301,-2312.895541,0.0003147,7]
[356485463,1742518246312,-2312.895541,0.0003147,7]
[356485464,1742518246321,-151.0,0.0003147,7]
[356485465,1742518246332,-151.0,0.0003147,7]
[356485466,1742518246343,-2312.895541,0.0003147,7]
[356485467,1742518246353,-2312.895541,0.0003147,7]
[356485468,1742518246363,-151.0,0.0003147,7]
[356485469,1742518246372,-151.0,0.0003147,7]
[356485470,1742518246382,-151.0,0.0003147,7]
[356485471,1742518246391,-151.0,0.0003147,7]
[356485472,1742518246400,-152.947381,0.0003147,7]
[356485473,1742518246411,-152.947381,0.0003147,7]
[356485474,1742518246420,-161.754107,0.0003147,7]
[356485475,1742518246430,-161.754107,0.0003147,7]
[356485476,1742518246440,-152.947381,0.0003147,7]
[356485477,1742518246449,-152.947381,0.0003147,7]
[356485478,1742518246458,-151.0,0.0003147,7]
[356485479,1742518246467,-151.0,0.0003147,7]
[356485480,1742518246476,-161.754107,0.0003147,7]
[356485481,1742518246486,-161.754107,0.0003147,7]
[356485482,1742518246494,-151.0,0.0003147,7]
[356485483,1742518246504,-285.855571,0.0003147,7]
[356485484,1742518246513,-151.0,0.0003147,7]
[356485485,1742518246522,-151.0,0.0003147,7]
[356485486,1742518246531,-151.0,0.0003147,7]
[356485487,1742518246541,-151.0,0.0003147,7]
[356485488,1742518246549,-151.0,0.0003147,7]
[356485489,1742518246559,-151.0,0.0003147,7]
[356485490,1742518246568,-1882.91172,0.0003147,7]
[356485491,1742518246578,-151.0,0.0003147,7]
[356485492,1742518246587,-1882.91172,0.0003147,7]
[356485493,1742518246596,-151.0,0.0003147,7]
[356485494,1742518246605,-1882.91172,0.0003147,7]
[356485495,1742518246613,-1882.91172,0.0003147,7]
[356485496,1742518246623,-151.0,0.0003147,7]
[356485497,1742518246632,-151.0,0.0003147,7]
[356485498,1742518246641,-151.0,0.0003147,7]
[356485499,1742518246650,-151.0,0.0003147,7]
[356485500,1742518246659,-151.0,0.0003147,7]
[356485501,1742518246668,-151.0,0.0003147,7]